[Event "44th Chess Olympiad Open 2022"]
[Site "Chennai"]
[Date "2022.08.09"]
[Round "11.21"]
[White "Paragua, Mark"]
[Black "Tari, Aryan"]
[Result "1/2-1/2"]
[ECO "B12"]
[WhiteElo "2461"]
[BlackElo "2672"]
[Annotator "TA"]
[PlyCount "60"]
[EventDate "2022.07.29"]
[EventType "team-tourn"]
[EventCountry "IND"]
[SourceTitle "playchess.com"]
[Source "ChessBase"]
[SourceQuality "1"]
[WhiteTeam "Philippines"]
[BlackTeam "Norway"]
[WhiteTeamCountry "PHI"]
[BlackTeamCountry "NOR"]
[TimeControl "40/5400+30:1800+30"]

{[%evp 9,60,11,19,-10,6,-5,27,20,31,20,40,30,15,41,27,39,43,39,48,22,21,18,43,0,0,0,0,-23,-15,-19,0,0,0,0,0,0,0,0,0,0,24,17,26,29,46,36,48,48,48,54,53,39,60]} 1. e4 {[%emt 0:02:06]} c6 {[%emt 0:00:12]} 2. d4 {[%emt 0:00:07]} d5 {[%emt 0:00:06]} 3. e5 {[%emt 0:00:12]} c5 {[%emt 0:00:06]} 4. dxc5 {[%emt 0:00:28]} e6 {[%emt 0:00:07]} 5. a3 {[%emt 0:02:27]} Bxc5 {[%emt 0:00:13]} 6. b4 {[%emt 0:00:47] B12: Caro-Kann: Advance Variation.} Be7 {[%emt 0:01:42]} 7. Nf3 {[%emt 0:05:34]} f6 {[%emt 0:00:12]} (7... a5 $5 {[%cal Ra5b4]}) 8. Bb2 {[%emt 0:04:52] White has an edge.} a5 {[%emt 0:02:30]} 9. b5 {[%emt 0:02:36]} Nd7 {[%emt 0:01:08]} 10. c4 {[%emt 0:02:38]} Nxe5 {[%emt 0:13:45]} 11. Nxe5 {[%emt 0:06:21]} (11. Bxe5 fxe5 12. Nxe5 Bd6 $17) 11... fxe5 {[%emt 0:02:30]} 12. Bxe5 {[%emt 0:00:29]} ({Much worse is} 12. Qh5+ g6 13. Qe2 (13. Qxe5 Bf6 $11) 13... Bf6 $15) 12... Nf6 {[%emt 0:14:57]} 13. Be2 {[%emt 0:02:42]} O-O {[%emt 0:00:58]} 14. O-O {[%emt 0:00:12]} Nd7 {[%emt 0:05:43]} 15. Bb2 {[%emt 0:00:52]} Nc5 {[%emt 0:02:14] [#]} 16. Bf3 $146 {[%emt 0:09:05][%cal Rc4d5]} ({Don't play} 16. Qd4 Bf6 17. Qxc5 Bxb2 $15) ({Predecessor:} 16. Ra2 b6 17. cxd5 Qxd5 18. Qxd5 exd5 19. Bf3 Bb7 20. Rd1 Rac8 21. Bd4 Na4 22. h3 {½-½ (35) Polakovic,P (2467)-Mayer,R (2464) ICCF email 2012}) 16... dxc4 {[%emt 0:07:10]} 17. Nd2 {[%emt 0:00:53]} e5 {[%emt 0:09:48][%cal Be6e5,Be5e4][%mdl 32]} 18. Nxc4 {[%emt 0:09:53] And now Qe2 would win.} e4 $1 {[%emt 0:00:20]} 19. Qxd8 {[%emt 0:00:32]} (19. Be2 {seems wilder.} Be6 20. Re1 a4 21. Bf1) 19... Bxd8 {[%emt 0:05:24]} 20. Be2 {[%emt 0:00:12]} Be6 {[%emt 0:00:42]} 21. Rad1 {[%emt 0:03:04] Inhibits Nd3.} a4 {[%emt 0:06:04]} 22. Bc3 {[%emt 0:04:54]} Nd3 {[%emt 0:04:44] Against Rfe1} 23. Bxd3 {[%emt 0:03:33]} exd3 {[%emt 0:00:01]} 24. Nd6 {[%emt 0:01:35]} Bb6 {[%emt 0:02:24] This bishop pair is nice.} (24... Be7 $5 {[%cal Re7d6]} 25. Rxd3 Rad8 $11) 25. Rxd3 {[%emt 0:06:51]} Rad8 {[%emt 0:00:06] [#] White must now prevent ...Bc4.} 26. Rd2 {[%emt 0:08:58]} Rd7 {[%emt 0:01:59]} 27. Bb4 $1 {[%emt 0:01:55] Prevents Bc5. White is slightly better.} Rfd8 {[%emt 0:02:46]} 28. Re1 {[%emt 0:01:27]} Bb3 {[%emt 0:01:33]} 29. Ree2 {[%emt 0:02:24]} Rc7 {[%emt 0:05:33] [#] Threatens to win with ...Rc1+.} 30. h3 {[%emt 0:04:03]} h6 {[%emt 0:00:49] Weighted Error Value: White=0.05 (flawless) /Black=0.04 (flawless)} 1/2-1/2

[Event "44th Chess Olympiad Open 2022"]
[Site "Chennai"]
[Date "2022.08.09"]
[Round "11.21"]
[White "Laylo, Darwin"]
[Black "Christiansen, Johan-Sebastian"]
[Result "1/2-1/2"]
[ECO "D35"]
[WhiteElo "2432"]
[BlackElo "2593"]
[Annotator "TA"]
[PlyCount "76"]
[EventDate "2022.07.29"]
[EventType "team-tourn"]
[EventCountry "IND"]
[SourceTitle "playchess.com"]
[Source "ChessBase"]
[SourceQuality "1"]
[WhiteTeam "Philippines"]
[BlackTeam "Norway"]
[WhiteTeamCountry "PHI"]
[BlackTeamCountry "NOR"]
[TimeControl "40/5400+30:1800+30"]

{[%evp 11,76,0,0,6,21,12,18,12,10,0,-8,0,-7,0,-10,0,24,0,7,6,8,8,11,-12,-10,-12,-10,-9,0,0,0,0,0,0,0,0,6,6,19,19,51,50,67,62,49,48,80,83,83,15,24,0,0,0,0,0,0,0,0,0,0,0,0,0,0,0,0]} 1. d4 {[%emt 0:00:06]} Nf6 {[%emt 0:00:32]} 2. c4 {[%emt 0:00:21]} e6 {[%emt 0:00:05]} 3. Nf3 {[%emt 0:00:36]} d5 {[%emt 0:00:02]} 4. Nc3 {[%emt 0:00:20]} c6 {[%emt 0:00:12]} 5. cxd5 {[%emt 0:01:43]} exd5 {[%emt 0:00:09]} 6. Bg5 {[%emt 0:00:02]} h6 {[%emt 0:01:09]} 7. Bf4 {[%emt 0:02:46] D35: Queen's Gambit Declined: Exchange Variation.} Nh5 {[%emt 0:04:38]} 8. Be5 {[%emt 0:02:31]} Nd7 {[%emt 0:00:09]} 9. e3 {[%emt 0:00:10]} Nxe5 {[%emt 0:05:20]} 10. Nxe5 {[%emt 0:00:57]} Nf6 {[%emt 0:00:08]} 11. Bd3 {[%emt 0:00:06] [#]} Nd7 $146 {[%emt 0:13:55]} ({Predecessor:} 11... Bd6 12. f4 O-O 13. Qf3 c5 14. O-O-O cxd4 15. exd4 Bb4 16. Ne2 Ne4 17. Bxe4 dxe4 {0-1 (36) Ipatov,A (2630)-Giri,A (2732) Antalya 2013}) 12. O-O {[%emt 0:21:23]} Nxe5 {[%emt 0:06:17]} 13. dxe5 {[%emt 0:00:42]} Bc5 {[%emt 0:00:19]} 14. e4 {[%emt 0:01:17]} (14. Na4 $5 {[%cal Ra4c5]} Be7 15. Rc1 $11) 14... Bd4 {[%emt 0:07:21]} 15. exd5 {[%emt 0:02:17]} Bxc3 {[%emt 0:00:17]} 16. bxc3 {[%emt 0:00:08] Black must now prevent d6.} Qxd5 {[%emt 0:00:04]} 17. Bc2 {[%emt 0:09:49]} Be6 {[%emt 0:12:00]} 18. Bb3 {[%emt 0:03:15]} Qxd1 {[%emt 0:05:21]} 19. Rfxd1 {[%emt 0:00:57]} Bxb3 {[%emt 0:08:50]} (19... Rd8 {keeps more tension.} 20. f4 Ke7 21. Kf2 Bg4) 20. axb3 $11 {[%emt 0:00:04][%mdl 4096] Endgame KRR-KRR} Ke7 {[%emt 0:00:09]} 21. f4 {[%emt 0:03:07]} a6 {[%emt 0:11:52]} 22. Kf2 {[%emt 0:00:35]} Rhd8 {[%emt 0:00:06]} 23. Ke3 {[%emt 0:01:29]} Ke6 {[%emt 0:03:49]} 24. Ke4 {[%emt 0:01:20]} f5+ {[%emt 0:01:53]} 25. Ke3 {[%emt 0:03:07]} g5 {[%emt 0:00:32]} 26. g3 {[%emt 0:00:07]} Rac8 {[%emt 0:04:11]} 27. b4 {[%emt 0:06:10]} Ke7 {[%emt 0:08:14]} 28. c4 {[%emt 0:06:57]} Rxd1 {[%emt 0:04:30]} 29. Rxd1 $14 {[%emt 0:00:02] KR-KR} c5 {[%emt 0:00:05]} 30. Rb1 {[%emt 0:02:17]} (30. bxc5 $16 {And now Rb1 would win.} Rxc5 31. Kd4) 30... b5 $11 {[%emt 0:00:31]} 31. cxb5 {[%emt 0:01:01]} axb5 {[%emt 0:00:02] The position is equal.} 32. bxc5 {[%emt 0:00:47]} Rxc5 {[%emt 0:00:01]} 33. Kd4 {[%emt 0:00:20]} Rc2 {[%emt 0:00:24]} 34. Rxb5 {[%emt 0:00:51]} Rxh2 {[%emt 0:00:30]} 35. Rb7+ {[%emt 0:00:34]} Ke6 {[%emt 0:00:06]} 36. Rb6+ {[%emt 0:08:01]} Ke7 {[%emt 0:00:02]} 37. Rb7+ {[%emt 0:05:05]} Ke6 {[%emt 0:00:02]} 38. Rb6+ {[%emt 0:01:51]} Ke7 {[%emt 0:00:08] Weighted Error Value: White=0.08 (flawless) /Black=0.05 (flawless)} 1/2-1/2

[Event "44th Chess Olympiad Open 2022"]
[Site "Chennai"]
[Date "2022.08.09"]
[Round "11.22"]
[White "Brkic, Ante"]
[Black "Miezis Normunds"]
[Result "0-1"]
[ECO "B48"]
[WhiteElo "2611"]
[BlackElo "2446"]
[Annotator "RC"]
[PlyCount "154"]
[EventDate "2022.07.29"]
[EventType "team-tourn"]
[EventCountry "IND"]
[SourceTitle "playchess.com"]
[Source "ChessBase"]
[SourceQuality "1"]
[WhiteTeam "Croatia"]
[BlackTeam "Latvia"]
[WhiteTeamCountry "CRO"]
[BlackTeamCountry "LAT"]
[TimeControl "40/5400+30:1800+30"]

1. e4 {[%emt 0:00:02]} c5 {[%emt 0:00:13]} 2. Nf3 {[%emt 0:00:06]} e6 {[%emt 0:00:10]} 3. d4 {[%emt 0:00:05]} cxd4 {[%emt 0:00:08]} 4. Nxd4 {[%emt 0:00:02]} a6 {[%emt 0:00:14]} 5. a3 {[%emt 0:11:14]} Nc6 {[%emt 0:02:46]} 6. Be3 {[%emt 0:00:22]} Nf6 {[%emt 0:03:49]} 7. Nc3 {[%emt 0:09:45]} Qc7 {[%emt 0:24:59]} 8. Be2 {[%emt 0:06:53]} b5 {[%emt 0:00:31]} 9. Nxc6 dxc6 {[%emt 0:00:00]} 10. f4 {[%emt 0:03:15]} Bb7 {[%emt 0:09:46]} 11. e5 {[%emt 0:00:10]} Rd8 {[%emt 0:05:10]} 12. Bd3 Nd5 {[%emt 0:05:11]} 13. Nxd5 {[%emt 0:08:06]} cxd5 {[%emt 0:03:14]} 14. Bd4 {[%emt 0:01:08]} Bc5 {[%emt 0:00:12]} 15. c3 {[%emt 0:06:58]} Qb6 {[%emt 0:05:25]} 16. Qd2 {[%emt 0:03:50]} Rc8 {[%emt 0:16:55]} 17. Qe3 {[%emt 0:07:51]} Bxd4 {[%emt 0:08:10]} 18. Qxd4 {[%emt 0:10:33]} Qxd4 {[%emt 0:00:00]} 19. cxd4 {[%emt 0:00:19]} Kd7 {[%emt 0:01:30]} 20. Kd2 {[%emt 0:09:09]} h6 {[%emt 0:01:41]} 21. h4 {[%emt 0:00:00]} Bc6 {[%emt 0:01:33]} 22. h5 {[%emt 0:00:00]} Ke7 {[%emt 0:01:40]} 23. Rh4 {[%emt 0:01:46]} Bd7 {[%emt 0:01:51]} 24. Rg4 {[%emt 0:03:24]} Rhg8 {[%emt 0:00:28]} 25. Rh1 {[%emt 0:02:04]} f5 {[%emt 0:02:04]} 26. exf6+ {[%emt 0:00:18]} gxf6 {[%emt 0:00:32]} 27. Rg6 {[%emt 0:00:09]} Rcf8 {[%emt 0:01:09]} 28. Rh2 {[%emt 0:03:55]} Be8 {[%emt 0:00:46]} 29. Rxh6 {[%emt 0:00:53]} f5 {[%emt 0:03:53]} 30. Be2 {[%emt 0:00:08]} Bf7 {[%emt 0:00:59]} 31. Bf3 {[%emt 0:01:42]} Rc8 {[%emt 0:00:00]} 32. Rh1 Rc4 {[%emt 0:00:31]} 33. b3 {[%emt 0:00:32]} Rc7 {[%emt 0:00:00]} 34. Rc1 {[%emt 0:00:13]} Rxc1 {[%emt 0:00:00]} 35. Kxc1 {[%emt 0:00:26]} a5 {[%emt 0:00:00]} 36. b4 {[%emt 0:11:30]} axb4 {[%emt 0:00:00]} 37. axb4 {[%emt 0:00:01]} Ra8 {[%emt 0:00:00]} 38. Kd2 {[%emt 0:01:11]} Rc8 {[%emt 0:01:32]} 39. Ke3 {[%emt 0:00:58]} Ra8 {[%emt 0:00:27]} 40. Kf2 {[%emt 0:00:32]} Rc8 {[%emt 0:00:45]} 41. Kg3 {[%emt 0:07:07]} Ra8 {[%emt 0:07:26]} 42. Kh4 {[%emt 0:01:39]} Rc8 {[%emt 0:03:27]} 43. Rh7 {[%emt 0:10:37]} Kf6 {[%emt 0:01:34]} 44. h6 {[%emt 0:03:11]} Rg8 {[%emt 0:06:19]} 45. Rg7 {[%emt 0:01:39]} Rh8 {[%emt 0:00:46]} 46. Bh5 {[%emt 0:00:31]} Be8 {[%emt 0:00:57]} 47. g4 {[%emt 0:06:18]} fxg4 {[%emt 0:00:29]} 48. Kxg4 {[%emt 0:00:44]} Rxh6 {[%emt 0:00:14]} 49. Bxe8 {[%emt 0:00:09]} Kxg7 {[%emt 0:00:09]} 50. Bxb5 {[%emt 0:00:02]} Rh1 {[%emt 0:05:38]} 51. f5 {[%emt 0:03:31]} Kf6 {[%emt 0:00:00]} 52. fxe6 {[%emt 0:00:09]} Kxe6 {[%emt 0:00:00]} 53. Kf4 {[%emt 0:01:05]} Rb1 {[%emt 0:00:00]} 54. Ke3 {[%emt 0:00:31]} Rxb4 {[%emt 0:00:00]} 55. Bd3 {[%emt 0:00:27]} Kf6 {[%emt 0:00:49]} 56. Bh7 {[%emt 0:00:22]} Rb8 {[%emt 0:01:00]} 57. Kf4 {[%emt 0:00:06]} Re8 {[%emt 0:00:29]} 58. Bc2 {[%emt 0:01:06]} Re1 {[%emt 0:01:51]} 59. Kf3 {[%emt 0:00:13]} Ke6 {[%emt 0:01:12]} 60. Kf2 {[%emt 0:00:17]} Rc1 {[%emt 0:00:35]} 61. Bh7 {[%emt 0:00:26]} Rh1 {[%emt 0:00:41]} 62. Bd3 {[%emt 0:00:25]} Kf6 {[%emt 0:00:56]} 63. Be2 {[%emt 0:00:25]} Ke6 {[%emt 0:01:37]} 64. Bf3 {[%emt 0:00:25]} Ra1 {[%emt 0:00:24]} 65. Ke3 {[%emt 0:00:05]} Kd6 {[%emt 0:00:29]} 66. Be2 {[%emt 0:01:46]} Ra3+ {[%emt 0:00:23]} 67. Kd2 {[%emt 0:00:29]} Kc6 {[%emt 0:00:14]} 68. Bd3 {[%emt 0:00:34]} Kb6 {[%emt 0:00:15]} 69. Be2 {[%emt 0:00:36]} Ka5 {[%emt 0:00:19]} 70. Kc2 {[%emt 0:00:15]} Kb4 {[%emt 0:00:13]} 71. Kd2 {[%emt 0:00:12]} Rg3 {[%emt 0:01:19]} 72. Kc2 {[%emt 0:00:19]} Rh3 {[%emt 0:01:21]} 73. Kd2 {[%emt 0:00:51]} Kb3 {[%emt 0:00:30]} 74. Ba6 {[%emt 0:00:17]} Rh4 {[%emt 0:01:11]} 75. Kd3 {[%emt 0:00:10]} Rg4 {[%emt 0:01:13]} 76. Bb5 {[%emt 0:00:31]} Kb4 {[%emt 0:00:14]} 77. Ba6 {[%emt 0:00:15]} Rg6 {[%emt 0:00:17]} 0-1

[Event "44th Chess Olympiad Open 2022"]
[Site "Chennai"]
[Date "2022.08.09"]
[Round "11.22"]
[White "Bosiocic, Marin"]
[Black "Golubovskis, Maksims"]
[Result "1-0"]
[ECO "D34"]
[WhiteElo "2549"]
[BlackElo "2219"]
[Annotator "RC"]
[PlyCount "67"]
[EventDate "2022.07.29"]
[EventType "team-tourn"]
[EventCountry "IND"]
[SourceTitle "playchess.com"]
[Source "ChessBase"]
[SourceQuality "1"]
[WhiteTeam "Croatia"]
[BlackTeam "Latvia"]
[WhiteTeamCountry "CRO"]
[BlackTeamCountry "LAT"]
[TimeControl "40/5400+30:1800+30"]

1. Nf3 {[%emt 0:00:03]} Nf6 {[%emt 0:00:20]} 2. g3 {[%emt 0:00:10]} e6 {[%emt 0:01:54]} 3. Bg2 {[%emt 0:00:13]} d5 {[%emt 0:00:07]} 4. O-O {[%emt 0:00:11]} Be7 {[%emt 0:00:15]} 5. c4 {[%emt 0:00:11]} O-O {[%emt 0:00:54]} 6. b3 {[%emt 0:00:07]} c5 {[%emt 0:04:00]} 7. cxd5 {[%emt 0:00:16]} exd5 {[%emt 0:00:53]} 8. d4 {[%emt 0:00:12]} Nc6 {[%emt 0:00:24]} 9. Bb2 {[%emt 0:00:19]} Be6 {[%emt 0:07:20]} 10. Nc3 {[%emt 0:00:33]} Rc8 {[%emt 0:02:14]} 11. dxc5 {[%emt 0:09:15]} Bxc5 {[%emt 0:00:20]} 12. Ng5 {[%emt 0:01:46]} Qe7 {[%emt 0:05:51]} 13. Nxe6 {[%emt 0:00:46]} fxe6 {[%emt 0:00:16]} 14. Bh3 {[%emt 0:00:11]} Rcd8 {[%emt 0:01:05]} 15. Na4 {[%emt 0:04:45]} Bd6 {[%emt 0:00:09]} 16. Rc1 {[%emt 0:00:29]} Ne4 {[%emt 0:24:20]} 17. Bg2 {[%emt 0:02:23]} Nc5 {[%emt 0:02:59]} 18. Nxc5 {[%emt 0:02:00]} Bxc5 {[%emt 0:00:12]} 19. Bh3 {[%emt 0:04:38]} Bb6 {[%emt 0:02:45]} 20. Rc3 {[%emt 0:09:21]} e5 {[%emt 0:01:24]} 21. Rf3 {[%emt 0:00:20]} e4 {[%emt 0:11:55]} 22. Rxf8+ {[%emt 0:00:43]} Kxf8 {[%emt 0:01:48]} 23. e3 {[%emt 0:01:26]} d4 {[%emt 0:05:50]} 24. Qh5 {[%emt 0:01:07]} Kg8 {[%emt 0:00:51]} 25. Bf5 {[%emt 0:03:22]} g6 {[%emt 0:01:03]} 26. Qg4 {[%emt 0:00:20]} Ne5 {[%emt 0:00:57]} 27. Be6+ {[%emt 0:00:26]} Kg7 {[%emt 0:01:20]} 28. Qxe4 {[%emt 0:00:25]} Qxe6 {[%emt 0:01:21]} 29. exd4 {[%emt 0:01:11]} Nf3+ {[%emt 0:04:26]} 30. Qxf3 {[%emt 0:00:15]} Bxd4 {[%emt 0:00:18]} 31. Rd1 {[%emt 0:02:21]} Qe5 {[%emt 0:01:47]} 32. Qf4 {[%emt 0:01:16]} Bxf2+ {[%emt 0:01:06]} 33. Qxf2 {[%emt 0:00:11]} Rxd1+ {[%emt 0:00:19]} 34. Kg2 {[%emt 0:00:04]} 1-0

[Event "44th Chess Olympiad Open 2022"]
[Site "Chennai"]
[Date "2022.08.09"]
[Round "11.22"]
[White "Kantans, Toms"]
[Black "Saric, Ivan"]
[Result "0-1"]
[ECO "B52"]
[WhiteElo "2486"]
[BlackElo "2680"]
[Annotator "TA"]
[PlyCount "88"]
[EventDate "2022.07.29"]
[EventType "team-tourn"]
[EventCountry "IND"]
[SourceTitle "playchess.com"]
[Source "ChessBase"]
[SourceQuality "1"]
[WhiteTeam "Latvia"]
[BlackTeam "Croatia"]
[WhiteTeamCountry "LAT"]
[BlackTeamCountry "CRO"]
[TimeControl "40/5400+30:1800+30"]

{[%evp 9,88,8,22,25,24,16,22,0,0,0,0,16,-4,-9,-8,-16,-5,-8,0,-4,0,-33,-41,-19,-40,-54,-56,-48,-43,-47,-39,-42,-35,-52,-52,-43,-25,-171,-163,-172,-134,-129,-120,-132,-122,-134,-117,-194,-162,-262,-254,-250,-216,-777,-768,-767,-691,-729,-956,-737,-712,-712,-593,-29988,-29989,-29988,-32,-26,-16,-28,-23,-95,-95,-95,0,-456,-455,-29984,-773,-29990,-29991]} 1. e4 {[%emt 0:00:04]} c5 {[%emt 0:00:03]} 2. Nf3 {[%emt 0:00:07]} d6 {[%emt 0:00:02]} 3. Bb5+ {[%emt 0:00:40]} Bd7 {[%emt 0:00:04]} 4. c4 {[%emt 0:01:38]} Nc6 {[%emt 0:00:10]} 5. Nc3 {[%emt 0:00:39]} Nf6 {[%emt 0:01:59]} 6. d4 {[%emt 0:04:41] B52: Sicilian: Moscow Variation with 3...Bd7.} cxd4 {[%emt 0:00:03]} 7. Nxd4 {[%emt 0:00:07]} g6 {[%emt 0:00:08]} 8. O-O {[%emt 0:05:54] The position is equal. 8.h3 is the modern continuation.} Bg7 {[%emt 0:00:52][%cal Of6e4]} 9. Bxc6 {[%emt 0:00:24]} bxc6 {[%emt 0:03:23]} 10. c5 {[%emt 0:00:59]} O-O {[%emt 0:03:54]} 11. cxd6 {[%emt 0:14:33]} exd6 {[%emt 0:00:07]} 12. Bf4 {[%emt 0:00:55]} Re8 {[%emt 0:01:42]} 13. Re1 {[%emt 0:04:58]} Qb6 {[%emt 0:16:24] White must now prevent ...Ng4.} 14. Nb3 $1 {[%emt 0:09:13]} d5 {[%emt 0:00:50][%cal Rd5e4] [#]} 15. exd5 $146 {[%emt 0:11:37]} (15. Be3 $5 {[%cal Re3b6]} Qb8 16. exd5 $11 (16. f3 dxe4 17. Nxe4 Be6 $15)) ({Predecessor:} 15. Na4 Qd8 16. exd5 cxd5 17. Rxe8+ Qxe8 18. Nc3 Bg4 19. f3 Be6 20. Qd2 Nd7 21. Nd4 {1-0 (34) Golubev,M (2476)-Fingerov,D (2300) Odessa 2018}) 15... Rxe1+ {[%emt 0:00:34]} 16. Qxe1 {[%emt 0:04:59]} Nxd5 {[%emt 0:00:07]} 17. Nxd5 {[%emt 0:01:29]} cxd5 {[%emt 0:00:03]} 18. Rd1 {[%emt 0:07:19]} Re8 {[%emt 0:03:14]} 19. Qd2 {[%emt 0:02:08]} d4 $36 {[%emt 0:02:33][%mdl 2048] Against Be3. Black has good play.} 20. h3 $1 {[%emt 0:05:25][%cal Rb3d4]} ({Don't blunder} 20. Nxd4 $2 Bxd4 21. h3 Re4 $19) 20... Ba4 {[%emt 0:01:04]} 21. Re1 {[%emt 0:00:36]} Rxe1+ {[%emt 0:02:23]} 22. Qxe1 {[%emt 0:00:02]} h5 {[%emt 0:04:50]} 23. Nc1 {[%emt 0:04:51]} (23. Qa5 $1 $11 {and White is okay.} Qxa5 24. Nxa5) 23... Qxb2 $19 {[%emt 0:01:21]} 24. Qa5 {[%emt 0:03:17]} Bb5 {[%emt 0:03:24] This bishop pair is nice.} 25. Qxa7 {[%emt 0:02:50]} Bc4 {[%emt 0:03:52]} 26. Qa4 {[%emt 0:03:38]} Be6 {[%emt 0:04:12] Black is more active.} 27. Qa5 {[%emt 0:03:26]} Qb1 {[%emt 0:02:17]} 28. a4 {[%emt 0:01:43]} (28. f3 $17) 28... Qc2 {[%emt 0:01:43]} 29. Qd8+ {[%emt 0:01:29]} (29. Qd2 $142 Qxa4 30. Nd3) 29... Kh7 {[%emt 0:00:05]} 30. a5 {[%emt 0:00:05]} Qe4 {[%emt 0:09:35]} 31. Qc7 {[%emt 0:02:44]} (31. Qg5) 31... Qe1+ {[%emt 0:00:41]} 32. Kh2 {[%emt 0:00:04]} Qxf2 {[%emt 0:00:23]} 33. Nd3 {[%emt 0:00:11]} Qe2 {[%emt 0:01:55]} 34. Nb4 {[%emt 0:00:30] Prevents Bd5.} Bf5 {[%emt 0:01:30] ( -> ...Be4)} 35. Qc1 {[%emt 0:02:06]} d3 {[%emt 0:03:02]} 36. Nd5 {[%emt 0:01:34]} Be4 {[%emt 0:00:28][%csl Ge4,LRd5,LRg2][%cal Re2g2]} 37. Ne3 {[%emt 0:00:08]} Bd4 $2 {[%emt 0:00:21]} (37... d2 {mates} 38. Qh1 Qf2 39. Bg3 Qxe3 40. Qd1 h4 41. Bd6 Qe1 42. Qg4 d1=Q 43. Qxh4+ Qxh4 44. Bg3 Qf1 $1 45. Bxh4 Qxg2#) 38. Qc4 $15 {[%emt 0:00:42][%csl LRd4,LRf7]} Qb2 {[%emt 0:01:38] ...Kg7 is the strong threat.} 39. Qxf7+ {[%emt 0:00:34]} Bg7 {[%emt 0:00:04] aiming for ...d2.} 40. a6 {[%emt 0:01:38] [#]} (40. Qc4 $1 $11 Qd4 41. Qxd4 Bxd4 42. Nd1) 40... Qd4 $1 $17 {[%emt 0:07:36] Strongly threatening ...d2.} 41. a7 {[%emt 0:09:23][%cal Oe3f5]} d2 {[%emt 0:00:53]} ({Black should play} 41... Ba8 $17 {Hoping for ...d2.} 42. Qc4 Qd7) 42. Qe7 $2 {[%emt 0:08:48][%mdl 8192]} (42. Nd1 $1 $11 {and White stays safe.}) 42... Ba8 $19 {[%emt 0:03:19]} 43. Qd6 {[%emt 0:01:25]} (43. Bg3 $19 Qxe3 44. Qxe3) 43... Qe4 {[%emt 0:04:38]} (43... g5 $142 44. Nd1 gxf4 45. Qe7 f3 46. Qg5 Qe5+ 47. Qxe5 Bxe5+ 48. Kg1 Bd4+ 49. Kf1 fxg2+ 50. Ke2 g1=Q 51. Kxd2 Be4 52. a8=B Qh2+ 53. Nf2 Qxf2+ 54. Kd1 Qc2+ 55. Ke1 Bc3+ 56. Kf1 Qg2#) 44. h4 {[%emt 0:01:34]} d1=Q {[%emt 0:00:20] Weighted Error Value: White=0.89/Black=0.44} 0-1